[Event "Polish Youth B18 Championship 2023"]
[Site "Jastrzebia Gora"]
[Date "2023.03.17"]
[Round "7.17"]
[White "Kotowicz, Kamil"]
[Black "Jedraszek, Pawel"]
[Result "0-1"]
[ECO "E73"]
[WhiteElo "1828"]
[BlackElo "1944"]
[Annotator "TA"]
[PlyCount "104"]
[EventDate "2023.03.11"]
[EventType "swiss"]
[EventCountry "POL"]
[SourceTitle "playchess.com"]
[Source "ChessBase"]
[SourceQuality "1"]
[TimeControl "40/5400+30:1800+30"]

{[%evp 21,104,40,37,31,35,0,0,-90,-72,-102,-91,-93,-87,-126,-133,-127,-122,-113,-119,-122,-121,-118,-118,-137,-135,-169,-117,-197,-195,-193,-188,-208,-195,-247,-246,-289,-264,-283,-266,-277,-277,-287,-286,-278,-278,-284,-262,-282,-283,-285,-283,-274,-266,-225,0,-246,-211,-211,-211,-204,-181,-189,-183,-192,-138,-262,-256,-255,-190,-1621,-506,-1689,-1527,-1566,-1565,-1641,-1414,-4512,-3063,-2826,-2545,-5452,-2795,-2607,-2405]} 1. d4 {[%emt 0:00:32]} Nf6 {[%emt 0:00:17]} 2. c4 {[%emt 0:00:18]} g6 {[%emt 0:00:06]} 3. Nc3 {[%emt 0:00:08]} Bg7 {[%emt 0:00:15]} 4. e4 {[%emt 0:00:15]} d6 {[%emt 0:00:11]} 5. Be2 {[%emt 0:00:16]} O-O {[%emt 0:00:37]} 6. Bg5 {[%emt 0:00:06]} c5 {[%emt 0:01:46]} 7. d5 {[%emt 0:00:06]} e6 {[%emt 0:02:43]} 8. Qd2 {[%emt 0:01:26]} exd5 {[%emt 0:01:31]} 9. exd5 {[%emt 0:01:23]} Re8 {[%emt 0:08:55]} 10. Nf3 {[%emt 0:01:32]} Bg4 {[%emt 0:01:37]} 11. O-O {[%emt 0:04:55]} Nbd7 {[%emt 0:03:09]} 12. Rae1 {[%emt 0:01:49] E75: King's Indian: Averbakh Variation: 6...c5 7 d5 e6.} a6 {[%emt 0:04:52]} 13. a4 {[%emt 0:02:11]} Qb6 {[%emt 0:02:13] [#]} 14. Bxf6 $146 {[%emt 0:03:50]} (14. Qc2 $11 {remains equal.}) ({Predecessor:} 14. h3 Bxf3 15. Bxf3 Rxe1 16. Rxe1 Ne5 17. Be2 Qb4 18. Bxf6 Bxf6 19. Ne4 Qxd2 20. Nxd2 {1-0 Hoang,T (2350)-Naiditsch,A (2255) Budapest FS04 GM 1998 (5)}) 14... Nxf6 $17 {[%emt 0:04:53]} 15. h3 {[%emt 0:02:45] [#]} Bxf3 {[%emt 0:04:06]} 16. Bxf3 {[%emt 0:00:19]} Qb4 {[%emt 0:04:18]} 17. Be2 {[%emt 0:09:43]} Ne4 {[%emt 0:03:42] Black is much more active.} 18. Nxe4 {[%emt 0:03:03]} Rxe4 {[%emt 0:00:03]} 19. Qxb4 {[%emt 0:00:17]} cxb4 {[%emt 0:00:02][%cal Bc5b4,Bb4b3,Bb3b2][%mdl 32] White is weak on the dark squares} 20. Bd3 {[%emt 0:00:24]} Rxe1 {[%emt 0:01:28]} 21. Rxe1 {[%emt 0:00:03]} Bxb2 {[%emt 0:00:12][%mdl 4096] Endgame KRB-KRB} 22. Re7 {[%emt 0:00:56]} b6 {[%emt 0:01:52]} 23. g3 {[%emt 0:01:56]} Bd4 {[%emt 0:02:03]} (23... b3 $19 24. Kf1 Bc3) 24. Kg2 {[%emt 0:00:37]} (24. Re4 $17 Be5 25. f4) 24... b3 $19 {[%emt 0:09:19]} 25. Re1 {[%emt 0:02:21]} b2 {[%emt 0:10:51]} 26. Rb1 {[%emt 0:00:35]} Rc8 {[%emt 0:02:24][%cal Ob6b5]} 27. h4 {[%emt 0:01:32]} (27. Kf3 {is a better defense.}) 27... h5 {[%emt 0:00:47]} 28. Kf1 {[%emt 0:01:30]} Bc3 {[%emt 0:05:56]} 29. Ke2 {[%emt 0:01:27]} Re8+ {[%emt 0:00:49]} 30. Kf3 {[%emt 0:01:13]} a5 {[%emt 0:00:47]} 31. Rd1 {[%emt 0:07:03]} Kg7 {[%emt 0:00:23]} 32. Bb1 {[%emt 0:04:41]} Rc8 {[%emt 0:02:34]} 33. Bd3 {[%emt 0:00:58]} Kf6 {[%emt 0:01:11]} 34. Ke4 {[%emt 0:00:53]} Rc7 {[%emt 0:01:53]} 35. Kf4 {[%emt 0:01:36]} Kg7 {[%emt 0:02:50]} 36. Kf3 {[%emt 0:00:28]} Kg8 {[%emt 0:01:24]} 37. Rb1 {[%emt 0:01:25]} Kg7 {[%emt 0:01:30]} 38. Rd1 $1 {[%emt 0:00:07]} Rc5 {[%emt 0:01:44]} 39. Rb1 {[%emt 0:01:54]} Kf8 {[%emt 0:03:31]} 40. Ke4 {[%emt 0:00:00]} Ke7 {[%emt 0:00:00]} 41. f4 {[%emt 0:01:53]} Kf6 {[%emt 0:06:57]} 42. Be2 {[%emt 0:01:46]} Kg7 {[%emt 0:00:57]} (42... Rc8 $19 {aiming for ...Re8+.} 43. Kd3 Re8 44. Bxh5 gxh5 45. Kxc3 Re2) 43. Bd3 {[%emt 0:00:32]} (43. Kd3 $17 Bf6 44. Bf1) 43... Rc7 {[%emt 0:00:22] [#] Threatens to win with ...Re7+.} 44. Be2 {[%emt 0:02:01]} Bf6 {[%emt 0:00:54]} 45. Bd3 $2 {[%emt 0:02:25]} (45. Bf1) 45... Re7+ {[%emt 0:00:21] Black is clearly winning.} 46. Kf3 {[%emt 0:00:05]} Bd4 {[%emt 0:00:21] ( -> ...Re3+)} 47. Kg2 {[%emt 0:02:32]} Re3 {[%emt 0:01:25]} 48. Bf1 {[%emt 0:00:11]} Ra3 {[%emt 0:01:17]} 49. Be2 {[%emt 0:01:07]} Rxa4 {[%emt 0:00:18]} 50. Bd3 {[%emt 0:00:07]} Ra3 {[%emt 0:00:16]} 51. Be2 {[%emt 0:00:08]} Ra1 {[%emt 0:01:41]} 52. Bd3 {[%emt 0:00:04]} a4 {Weighted Error Value: White=0.58/Black=0.26 (precise)} 0-1

[Event "Polish Youth B18 Championship 2023"]
[Site "Jastrzebia Gora"]
[Date "2023.03.17"]
[Round "7.18"]
[White "Kitewski, Bartosz"]
[Black "Kossowski, Pawel"]
[Result "1-0"]
[ECO "E54"]
[WhiteElo "1968"]
[BlackElo "1766"]
[Annotator "TA"]
[PlyCount "95"]
[EventDate "2023.03.11"]
[EventType "swiss"]
[EventCountry "POL"]
[SourceTitle "playchess.com"]
[Source "ChessBase"]
[SourceQuality "1"]
[TimeControl "40/5400+30:1800+30"]

{[%evp 19,94,17,10,0,0,0,9,12,45,0,15,-7,-6,-22,0,0,0,8,0,0,7,0,97,100,98,93,87,93,109,60,64,43,54,72,106,30,133,29,167,147,81,40,50,26,136,103,101,95,82,104,112,112,120,0,58,0,201,161,239,236,343,64,76,0,232,121,1175,1076,29971,12844,29987,29988,29997,29998,29998,29999,29999]} 1. d4 {[%emt 0:00:19]} Nf6 {[%emt 0:00:05]} 2. c4 {[%emt 0:00:37]} e6 {[%emt 0:00:06]} 3. Nc3 {[%emt 0:00:05]} Bb4 {[%emt 0:00:05]} 4. Nf3 {[%emt 0:00:04]} c5 {[%emt 0:00:07]} 5. e3 {[%emt 0:00:05]} O-O {[%emt 0:00:36]} 6. Bd3 {[%emt 0:00:06]} d5 {[%emt 0:00:23]} 7. O-O {[%emt 0:00:19]} dxc4 {[%emt 0:00:29]} 8. Bxc4 {[%emt 0:00:05]} Qe7 {[%emt 0:00:07]} 9. a3 {[%emt 0:02:33]} Ba5 {[%emt 0:00:10]} 10. Qe2 {[%emt 0:00:06]} Nc6 {[%emt 0:02:09]} 11. Na4 {[%emt 0:11:28] E54: Nimzo-Indian: Rubinstein: Main Line: 7...dxc4 8 Bxc4.} cxd4 {[%emt 0:09:07]} 12. exd4 {[%emt 0:00:23] [#]} a6 $146 {[%emt 0:01:32] And now ...b5 would win.} ({Predecessor:} 12... Rd8 13. Rd1 Bc7 14. Bg5 h6 15. Bh4 g5 16. Bg3 Bxg3 17. hxg3 Bd7 18. Nc5 Nxd4 19. Nxd4 Qxc5 {½-½ Schadeck,H-Pappier,C Latin Am-Cup3 corr 1972}) 13. Bd3 {[%emt 0:04:51] The position is equal.} b5 {[%emt 0:04:22]} 14. Nc3 {[%emt 0:02:02]} (14. Nc5 $5 {[%cal Rc1g5]}) 14... Rd8 {[%emt 0:01:53]} 15. Rd1 {[%emt 0:03:12]} Bb7 {[%emt 0:03:03]} 16. Bg5 {[%emt 0:14:01]} h6 {[%emt 0:04:16]} 17. Bxf6 {[%emt 0:01:32][%mdl 64] Remove Defender} Qxf6 {[%emt 0:00:19]} 18. Ne4 {[%emt 0:00:15]} Qe7 {[%emt 0:00:49]} (18... Nxd4 $2 19. Nxf6+ gxf6 20. Nxd4 Rxd4 21. Bh7+ Kxh7 22. Rxd4 $18) 19. b4 {[%emt 0:02:06]} Bb6 {[%emt 0:02:29]} (19... Nxd4 $2 20. Nxd4 Rxd4 21. bxa5 $18) 20. Nc5 {[%emt 0:00:12]} g6 {[%emt 0:06:58]} (20... Rac8 $11) 21. Be4 $16 {[%emt 0:10:59]} Bxc5 {[%emt 0:11:53]} 22. dxc5 {[%emt 0:00:33]} Rxd1+ {[%emt 0:01:55]} 23. Rxd1 {[%emt 0:00:12]} Rd8 {[%emt 0:00:07] Inhibits Rd6.} 24. Bxc6 {[%emt 0:15:09]} (24. h4 $16) 24... Bxc6 $14 {[%emt 0:01:20]} 25. Ne5 {[%emt 0:00:22]} Rxd1+ {[%emt 0:01:08]} 26. Qxd1 {[%emt 0:00:15][%mdl 4096] Endgame KQB-KQN} Bd5 {[%emt 0:00:14]} 27. Qc1 {[%emt 0:04:34]} ({Better is} 27. Qd4 $1 $16) 27... h5 {[%emt 0:02:03] Repels Ng4} (27... Qg5 $11 28. Qxg5 hxg5) 28. Qe3 {[%emt 0:06:59]} (28. h3 $16) 28... Qc7 {[%emt 0:02:51]} (28... f6 $11) 29. Qg5 $18 {[%emt 0:03:20] Qf6 would be deadly.} Kg7 {[%emt 0:02:54] Inhibits Qf6+.} 30. h3 {[%emt 0:04:26]} a5 $1 {[%emt 0:02:09]} 31. Nd3 {[%emt 0:01:57]} (31. Qg3 {simplifies} axb4 32. axb4 Qe7 33. Nd3) 31... Ba8 {[%emt 0:03:32]} (31... f6 $11 {keeps the balance.} 32. Qe3 axb4 33. Nxb4 Qb7) 32. Nf4 $1 $16 {[%emt 0:01:13]} Kh7 {[%emt 0:00:30]} 33. Qf6 {[%emt 0:00:20] Nd3 is the strong threat.} axb4 {[%emt 0:02:17]} 34. axb4 {[%emt 0:00:07] Strongly threatening Nd3.} Qb7 {[%emt 0:00:45]} 35. f3 {[%emt 0:00:22] Threatens to win with Nd3. White is more active.} Qd7 {[%emt 0:00:17] [#] Prevents Nd3.} 36. Qe5 {[%emt 0:00:50]} (36. Ne2 $1 $16) 36... Bc6 {[%emt 0:04:16]} (36... Qd1+ $11 37. Kh2 Qd8) 37. Ne2 {[%emt 0:01:16]} (37. Qc3 $14) 37... Qa7 $2 {[%emt 0:02:11]} (37... Qd2 $11 {and Black is okay.}) 38. Nd4 $36 {[%emt 0:01:33][%mdl 2112] Deflection. White has strong initiative.} Bd5 {[%emt 0:00:06]} (38... Be8 $142) 39. Kh2 $18 {[%emt 0:02:29]} (39. Nxb5 $6 Qb7 $16) 39... Qa4 {[%emt 0:03:44]} (39... Qd7 $142 40. Qd6 Qa7) 40. c6 $2 {[%emt 0:00:00]} ({Only move:} 40. Qf4 $18 Qxb4 41. Qxf7+ Kh6 42. Qf6 (42. Nxe6 Bxe6 {[%mdl 64] Remove Defender} 43. Qxe6 Qxc5 $11)) 40... Qxb4 $14 {[%emt 0:00:00] [#]} 41. c7 {[%emt 0:07:36]} (41. Qf4 $1 $16 {[%cal Rf4f7]} Qe7 42. c7 (42. Nxb5 Bxc6 43. Nd6 f6 $17)) 41... Qc3 $2 {[%emt 0:01:39]} (41... f6 $11 42. Qf4 Qc5) 42. Qd6 {[%emt 0:01:10]} ({White should play} 42. Qf4 $18 Kg8 43. Nxb5 (43. Qd6 Bb7 $16)) 42... b4 $2 {[%emt 0:03:33][%mdl 8192] [#]} (42... Bb7 $16) 43. Nc6 $1 $18 {[%emt 0:04:59][%mdl 576] Promotion} b3 {[%emt 0:00:21]} (43... Bxc6 44. c8=Q) 44. c8=Q {[%emt 0:00:15][%cal Od6b8] White threatens Qdb8! and mate.} (44. c8=B $2 {too greedy.} b2 45. Qb8 Bb3 $19) 44... b2 {[%emt 0:00:10] [#]} 45. Qdb8 $1 {[%emt 0:01:30] White mates.} Bb3 {[%emt 0:00:51]} (45... Qg7 46. Ne7) 46. Qg8+ {[%emt 0:00:24]} Kh6 {[%emt 0:00:18]} 47. Qf4+ {[%emt 0:00:06]} g5 {[%emt 0:00:09]} 48. Qfxg5# {[%emt 0:00:04] Weighted Error Value: White=0.39/Black=0.74} 1-0

[Event "Polish Youth B18 Championship 2023"]
[Site "Jastrzebia Gora"]
[Date "2023.03.17"]
[Round "7.19"]
[White "Bem, Tymoteusz"]
[Black "Kozlowski, Franciszek"]
[Result "1-0"]
[ECO "D55"]
[WhiteElo "1748"]
[BlackElo "1829"]
[Annotator "NA RC COMBH"]
[PlyCount "89"]
[EventDate "2023.03.11"]
[EventType "swiss"]
[EventCountry "POL"]
[SourceTitle "playchess.com"]
[Source "ChessBase"]
[SourceQuality "1"]
[TimeControl "40/5400+30:1800+30"]

1. d4 {[%emt 0:00:25]} d5 {[%emt 0:00:30]} 2. c4 {[%emt 0:00:17]} e6 {[%emt 0:00:39]} 3. Nc3 {[%emt 0:00:09]} Nf6 {[%emt 0:00:32]} 4. Nf3 {[%emt 0:00:39]} Be7 {[%emt 0:01:02]} 5. Bg5 {[%emt 0:00:08]} O-O {[%emt 0:00:45]} 6. e3 {[%emt 0:00:43]} h6 {[%emt 0:00:51]} 7. Bxf6 {[%emt 0:00:05]} Bxf6 {[%emt 0:00:12]} 8. cxd5 {[%emt 0:00:03]} exd5 {[%emt 0:00:19]} 9. Bd3 {[%emt 0:00:04]} Re8 {[%emt 0:06:42]} 10. Rc1 {[%emt 0:01:46]} c6 {[%emt 0:00:26]} 11. O-O {[%emt 0:00:09]} Be6 {[%emt 0:05:19]} 12. b4 {[%emt 0:04:20]} Nd7 {[%emt 0:05:12]} 13. Ne2 {[%emt 0:03:58]} Nb6 {[%emt 0:07:13]} 14. Nf4 {[%emt 0:01:01]} Bd7 {[%emt 0:03:05]} 15. Re1 {[%emt 0:09:48]} Qb8 {[%emt 0:03:36]} 16. Bb1 {[%emt 0:06:54]} g6 {[%emt 0:09:21]} 17. h4 {[%emt 0:07:04]} Bg4 {[%emt 0:08:18]} 18. Qc2 {[%emt 0:15:56]} Bf5 {[%emt 0:02:22]} 19. Qb3 {[%emt 0:01:52]} Bxb1 {[%emt 0:01:07]} 20. Qxb1 {[%emt 0:00:41]} Bg7 {[%emt 0:02:38]} (20... a6 $11) 21. h5 {[%emt 0:04:41]} ({White should play} 21. b5 $14) 21... g5 {[%emt 0:01:14]} 22. Ne2 {[%emt 0:00:55]} Nc4 {[%emt 0:03:59]} 23. Rxc4 {[%emt 0:06:21]} dxc4 {[%emt 0:00:12]} 24. e4 {[%emt 0:00:29]} a5 {[%emt 0:02:49]} 25. e5 {[%emt 0:02:16]} b5 {[%emt 0:02:35]} 26. Ng3 {[%emt 0:05:32]} Qc8 {[%emt 0:04:47]} 27. bxa5 {[%emt 0:03:17]} Rxa5 {[%emt 0:01:31]} 28. Nf5 {[%emt 0:01:10]} Qd7 {[%emt 0:00:48]} 29. Nd2 {[%emt 0:00:40]} c3 {[%emt 0:13:37]} 30. Ne4 {[%emt 0:00:42]} Qxf5 {[%emt 0:01:58]} (30... Qe6 $15) 31. Nf6+ {[%emt 0:00:08]} Qxf6 {[%emt 0:00:23]} 32. exf6 {[%emt 0:00:02]} Rxe1+ {[%emt 0:00:09]} 33. Qxe1 {[%emt 0:00:10]} Bxf6 {[%emt 0:00:47]} 34. Qxc3 {[%emt 0:00:30]} Rxa2 {[%emt 0:00:44]} 35. Qxc6 {[%emt 0:01:08]} Kg7 {[%emt 0:00:49]} 36. d5 {[%emt 0:03:20]} b4 {[%emt 0:01:02]} 37. Qb6 {[%emt 0:03:35]} Rd2 {[%emt 0:01:15]} 38. Qb5 {[%emt 0:02:17]} Bc3 {[%emt 0:03:52]} 39. g3 {[%emt 0:01:17]} Kf6 {[%emt 0:02:16]} 40. Qc6+ {[%emt 0:00:00]} Ke5 {[%emt 0:00:00]} 41. Qxh6 {[%emt 0:04:59]} b3 {[%emt 0:09:10] [#]} 42. Qh8+ $1 {[%emt 0:09:56] Skewer} (42. Qxg5+ Kd4 $16) 42... f6 {[%emt 0:00:19]} 43. Qb8+ {[%emt 0:00:02]} Kxd5 {[%emt 0:02:17]} 44. Qxb3+ {[%emt 0:00:02]} Kd4 {[%emt 0:00:12]} 45. h6 $18 {[%emt 0:00:40]} 1-0

[Event "Polish Youth B18 Championship 2023"]
[Site "Jastrzebia Gora"]
[Date "2023.03.17"]
[Round "7.20"]
[White "Zeissel, Andrzej"]
[Black "Wesolek, Krzysztof"]
[Result "1-0"]
[ECO "C29"]
[WhiteElo "1717"]
[BlackElo "1765"]
[Annotator "NA COMBH"]
[PlyCount "115"]
[EventDate "2023.03.11"]
[EventType "swiss"]
[EventCountry "POL"]
[SourceTitle "playchess.com"]
[Source "ChessBase"]
[SourceQuality "1"]
[TimeControl "40/5400+30:1800+30"]

1. e4 {[%emt 0:00:04]} e5 {[%emt 0:00:07]} 2. Nc3 {[%emt 0:00:14]} Nf6 {[%emt 0:00:05]} 3. f4 {[%emt 0:00:35]} d5 {[%emt 0:00:05]} 4. fxe5 {[%emt 0:00:06]} Nxe4 {[%emt 0:00:04]} 5. Qf3 {[%emt 0:00:13]} f5 {[%emt 0:01:27]} 6. d3 {[%emt 0:00:15]} Nxc3 {[%emt 0:01:42]} 7. bxc3 {[%emt 0:00:03]} d4 {[%emt 0:01:13]} 8. Qg3 {[%emt 0:01:14]} Nc6 {[%emt 0:05:08]} 9. Be2 {[%emt 0:00:33]} Be6 {[%emt 0:10:29]} 10. Bf3 {[%emt 0:05:33]} Qd7 {[%emt 0:08:07]} 11. Ne2 {[%emt 0:09:17]} Bc5 {[%emt 0:22:15]} 12. Bxc6 {[%emt 0:25:17]} bxc6 {[%emt 0:00:16]} 13. c4 {[%emt 0:02:45]} O-O {[%emt 0:13:16]} 14. Nf4 {[%emt 0:05:35]} Bb4+ {[%emt 0:02:10]} 15. Bd2 {[%emt 0:02:00]} Bxd2+ {[%emt 0:00:24]} 16. Kxd2 {[%emt 0:00:02]} Rab8 {[%emt 0:02:14]} 17. Rab1 {[%emt 0:05:28]} Rb6 {[%emt 0:02:10]} 18. Rb3 {[%emt 0:03:46]} Rfb8 {[%emt 0:02:15]} 19. Qg5 {[%emt 0:11:19]} a5 {[%emt 0:05:55]} 20. Rf1 {[%emt 0:04:12]} Rf8 {[%emt 0:03:51]} 21. Rfb1 {[%emt 0:03:35]} Rfb8 {[%emt 0:07:14]} 22. h4 {[%emt 0:03:29]} Bf7 {[%emt 0:08:03]} 23. Re1 {[%emt 0:06:30]} Re8 {[%emt 0:01:34]} 24. e6 {[%emt 0:07:35]} Bxe6 {[%emt 0:00:12]} 25. Rxe6 {[%emt 0:00:06]} Rxe6 {[%emt 0:00:09]} 26. Nxe6 {[%emt 0:00:04]} Qxe6 {[%emt 0:00:07]} 27. Qd8+ {[%emt 0:00:18]} Kf7 {[%emt 0:00:13]} 28. Qxc7+ {[%emt 0:00:58]} Kf6 {[%emt 0:02:58]} 29. Qd8+ {[%emt 0:01:21]} Kf7 {[%emt 0:00:16]} 30. Qxd4 {[%emt 0:00:33]} Rxb3 {[%emt 0:00:15]} 31. cxb3 {[%emt 0:00:09]} Qg6 {[%emt 0:01:12]} 32. Qd7+ {[%emt 0:01:08]} Kf8 {[%emt 0:00:24]} 33. Qd8+ {[%emt 0:00:21]} Kf7 {[%emt 0:00:02]} 34. Qc7+ {[%emt 0:01:22]} Kf8 {[%emt 0:00:35]} 35. g3 {[%emt 0:00:24]} Qh6+ {[%emt 0:00:01]} 36. Qf4 {[%emt 0:00:34]} Qf6 {[%emt 0:00:49]} 37. d4 {[%emt 0:00:40]} Qe6 {[%emt 0:00:55]} 38. Qe3 {[%emt 0:00:50]} Qd6 {[%emt 0:00:23]} 39. Qe5 {[%emt 0:00:39]} Qh6+ {[%emt 0:00:38]} 40. Qf4 {[%emt 0:00:00]} Qf6 {[%emt 0:00:00]} 41. Kc3 {[%emt 0:03:10]} Qe6 {[%emt 0:02:31]} 42. Qe5 {[%emt 0:01:32]} Qg6 {[%emt 0:00:26]} 43. d5 {[%emt 0:04:51]} cxd5 {[%emt 0:00:05]} 44. cxd5 {[%emt 0:00:06]} Qg4 {[%emt 0:01:05]} 45. Qf4 {[%emt 0:02:12]} Qd1 {[%emt 0:00:27]} 46. Qxf5+ {[%emt 0:01:25]} Kg8 {[%emt 0:00:41]} 47. Qc8+ {[%emt 0:03:26]} Kf7 {[%emt 0:00:13]} 48. Qc7+ {[%emt 0:00:29]} Kf8 {[%emt 0:00:44]} 49. Qf4+ {[%emt 0:00:30]} Ke8 {[%emt 0:01:35]} 50. Qe5+ {[%emt 0:00:51]} Kf8 {[%emt 0:00:09]} 51. Qb8+ {[%emt 0:01:26]} Kf7 {[%emt 0:00:13]} 52. Qc7+ {[%emt 0:00:05]} Kf8 {[%emt 0:04:43]} 53. d6 {[%emt 0:02:44]} Qe1+ {[%emt 0:00:37]} 54. Kd4 {[%emt 0:01:42]} Qb4+ {[%emt 0:01:02]} 55. Kd5 {[%emt 0:00:55]} Qb5+ {[%emt 0:00:28]} 56. Qc5 {[%emt 0:00:42]} Qd3+ {[%emt 0:02:01]} 57. Kc6 {[%emt 0:00:21]} Qa6+ {[%emt 0:00:51]} 58. Kc7 {[%emt 0:00:29]} 1-0

[Event "Polish Youth B18 Championship 2023"]
[Site "Jastrzebia Gora"]
[Date "2023.03.17"]
[Round "7.21"]
[White "Malik, Maciej"]
[Black "Smuda, Tomasz"]
[Result "1-0"]
[ECO "A04"]
[WhiteElo "2163"]
[BlackElo "1654"]
[Annotator "TA"]
[PlyCount "87"]
[EventDate "2023.03.11"]
[EventType "swiss"]
[EventCountry "POL"]
[SourceTitle "playchess.com"]
[Source "ChessBase"]
[SourceQuality "1"]
[TimeControl "40/5400+30:1800+30"]

{[%evp 11,87,-31,-36,-51,-44,-42,0,0,21,-3,-2,8,20,15,27,34,38,40,33,28,75,57,77,72,72,58,87,78,93,87,82,89,85,100,142,138,128,143,140,133,130,131,125,111,195,153,188,138,252,235,315,291,291,294,296,282,288,287,281,283,297,305,370,335,365,359,520,510,714,692,806,810,805,852,809,805,772,775]} 1. Nf3 {[%emt 0:01:22]} c5 {[%emt 0:00:17]} 2. g3 {[%emt 0:00:09]} Nc6 {[%emt 0:00:43]} 3. Bg2 {[%emt 0:00:10]} Nf6 {[%emt 0:00:52]} 4. O-O {[%emt 0:00:10]} d5 {[%emt 0:01:44]} 5. d3 {[%emt 0:00:08]} e5 {[%emt 0:00:43]} 6. Bg5 {[%emt 0:10:35]} Be7 {[%emt 0:01:16]} 7. Nbd2 {[%emt 0:00:56] A08: King's Indian Attack.} O-O {[%emt 0:00:35]} 8. e4 {[%emt 0:02:46]} dxe4 {[%emt 0:02:52]} 9. dxe4 {[%emt 0:02:19] The position is equal.} Bg4 {[%emt 0:03:42]} 10. Bxf6 {[%emt 0:04:00]} Bxf6 {[%emt 0:00:39] [#]} 11. c3 $146 {[%emt 0:01:41]} ({Predecessor:} 11. h3 Be6 12. Qe2 Qc7 13. c3 Rad8 14. Rfd1 Qc8 15. Kh2 a6 16. Nc4 Bxc4 {½-½ Staricek,P (2137)-Korytko,P (2124) SVK-chT3D 0001 2000 (4)}) 11... Qc7 {[%emt 0:02:09]} 12. Qc2 {[%emt 0:01:00]} Rfd8 {[%emt 0:04:33]} 13. Nc4 {[%emt 0:08:39]} Rd7 {[%emt 0:06:30]} 14. Ne3 {[%emt 0:00:35] A dynamic duo of knights.} Be6 {[%emt 0:00:17]} 15. Rfd1 {[%emt 0:04:38]} c4 {[%emt 0:20:56]} (15... Rad8 $11 {was preferrable.}) 16. Bf1 {[%emt 0:13:43]} Na5 {[%emt 0:10:43] [#]} 17. Rxd7 $1 {[%emt 0:04:46]} Qxd7 {[%emt 0:02:29]} 18. Rd1 {[%emt 0:00:09]} Qc7 {[%emt 0:01:49]} 19. Nd5 {[%emt 0:03:41]} Bxd5 {[%emt 0:00:48]} 20. exd5 {[%emt 0:00:25]} (20. Rxd5 {simplifies} a6 21. Qd2 Rd8 22. Rxd8+ Qxd8 23. Qxd8+ Bxd8 24. Nxe5 b5 25. Bh3) 20... Rd8 {[%emt 0:04:09]} 21. Qa4 {[%emt 0:07:35] Repels b5} a6 {[%emt 0:17:19] [#]} 22. d6 $1 {[%emt 0:05:11]} Qc6 {[%emt 0:00:26]} (22... Qc5 23. Nd2) 23. Qxa5 {[%emt 0:03:16]} Qxf3 {[%emt 0:00:20]} 24. Rd2 {[%emt 0:01:12]} Qg4 {[%emt 0:08:24]} 25. Bg2 {[%emt 0:09:20] White is more active.} e4 {[%emt 0:07:03]} 26. Qd5 {[%emt 0:07:02][%csl LRb7,LRc4,LRe4]} e3 {[%emt 0:00:55]} 27. fxe3 {[%emt 0:00:59]} Bg5 {[%emt 0:00:22]} (27... b5 $16 {was called for.} 28. d7 Kf8) 28. Qe5 {[%emt 0:00:49]} (28. Qxb7 $2 Bxe3+ 29. Rf2 Qf5 $19) 28... Bf6 {[%emt 0:01:24]} 29. Qc5 {[%emt 0:02:30]} (29. Qf4 $18 Qd7 30. Bf3 (30. Qxc4 Be5 $18)) 29... Rc8 {[%emt 0:00:30]} (29... b5 $16 30. d7 h5) 30. Qb6 $40 {[%emt 0:01:01][%mdl 128] White goes for the king.} Qe6 {[%emt 0:00:29]} 31. d7 {[%emt 0:01:38] White threatens Qxe6 and mate.} (31. Qxb7 $6 Qxe3+ 32. Rf2 Rf8 $18) 31... Rd8 {[%emt 0:00:30]} 32. Qxe6 {[%emt 0:00:37]} (32. Qxb7 Qxe3+ 33. Rf2 Be7 $16) 32... fxe6 {[%emt 0:00:05]} 33. Bxb7 {[%emt 0:00:04][%mdl 4096] Endgame KRB-KRB} a5 {[%emt 0:00:54]} 34. Ba6 {[%emt 0:00:06]} Kf7 {[%emt 0:00:28]} 35. Bxc4 {[%emt 0:00:09]} Ke7 {[%emt 0:00:32]} 36. Bb5 {[%emt 0:00:05]} Bg5 {[%emt 0:00:32]} 37. Kf2 {[%emt 0:00:21]} Rf8+ {[%emt 0:00:07]} 38. Ke2 {[%emt 0:00:10]} Kd8 {[%emt 0:00:30]} (38... Bf6 $142 39. c4 Be5) 39. Rd6 {[%emt 0:00:47] White is clearly winning.} Rf5 {[%emt 0:00:39]} 40. a4 {[%emt 0:00:00]} Re5 {[%emt 0:00:00]} 41. Ra6 {[%emt 0:00:38]} Rxe3+ {[%emt 0:05:53]} 42. Kf2 {[%emt 0:00:10]} Re5 {[%emt 0:00:07]} 43. Ra8+ {[%emt 0:00:07]} Kc7 {[%emt 0:00:03]} 44. Rc8+ {[%emt 0:00:06] Black did not feel at home in the position after the opening.   Weighted Error Value: White=0.08 (flawless) /Black=0.29 (precise)} 1-0